Cogmind - Beta 13 @@@ ROGUE MODE // 2024.04.14 @ 18:16:15 Player: MO-55 Result: Destroyed by B-75 Beast with Heavy Plasma Cannon Performance ------------- Evolutions (2) 1000 Regions Visited (4) 800 Robots Destroyed (88) 440 Value Destroyed (3158) 3158 Prototype IDs (0) 0 Alien Tech Used (0) 0 Bonus (1021) 1021 TOTAL SCORE: 6419 Bonus ------- High Alert Combat Kills 321 Entered Garrisons 200 Used RIF Installer 500 Cogmind --------- Core Integrity 0/550 Matter 38/300 Energy 265/265 System Corruption 3% Temperature Cool (12) Movement Treading (162) Location -8/Garrison Parts ------- > --- POWER (1) -------- Improved Ion Engine > --- PROPULSION (4) --- Light Treads Light Treads Light Treads Armored Medium Treads > --- UTILITY (4) ------ Improved Heat Sink Large Storage Unit Improved Signal Interpreter Medium Reflective Plating > --- WEAPON (2) ------- Hypervelocity Gauss Cannon Power Maul > --- INVENTORY (15) --- Improved Ion Engine Light Treads Light Treads Light Treads Improved Transmission Jammer Light Armor Plating Light Armor Plating Light Armor Plating Advanced Shield Generator Relay Coupler [NC] (23) Long-range Tractor Beam Enhanced Gauss Cannon Improved Grenade Launcher Improved Grenade Launcher Improved Grenade Launcher Peak State ------------ > --- POWER ------------ Improved Ion Engine > --- PROPULSION ------- Light Treads Armored Medium Treads Carbon-fiber Leg Carbon-fiber Leg > --- UTILITY ---------- Large Storage Unit Improved Signal Interpreter Hardened Medium Armor Plating Improved Light Armor Plating > --- WEAPON ----------- Gauss Cannon Great Axe > --- INVENTORY -------- Aluminum Leg Linear Gravjet Melee Analysis Suite Melee Analysis Suite Improved Transmission Jammer Medium Reflective Plating Advanced Shield Generator Long-range Tractor Beam Enhanced Gauss Cannon Hypervelocity Gauss Cannon Heavy Shock Bomb Launcher Great Axe Great Axe Great Axe [Rating: 39] Favorites ----------- Power Light Ion Engine Engine Light Ion Engine Power Core Micro Nuclear Core Propulsion Carbon-fiber Leg Treads Light Treads Leg Carbon-fiber Leg Hover Unit Linear Gravjet Utility High-capacity Storage Unit Device Improved Heat Sink Storage High-capacity Storage Unit Processor Improved Signal Interpreter Protection Light Armor Plating Weapon Gauss Cannon Energy Cannon Subdweller Beam Cannon Ballistic Gun Light Assault Rifle Ballistic Cannon Gauss Cannon Impact Weapon Power Maul Slashing Weapon Great Axe Build | -11 -10 -10 -8 -8 ------- Run | Yrd Mat Sub Mat Gar Slots Evolved 4 | . . . 4 . Power . | . . . . . Propulsion 2 | . . . 2 . Utility 2 | . . . 2 . Weapon . | . . . . . Parts Attached 95 | 6 12 13 23 41 Power 11 | 1 2 1 2 5 Engine 10 | 1 2 1 1 5 Core 1 | . . . 1 . Reactor . | . . . . . Propulsion 24 | 2 3 2 4 13 Treads 8 | . . 2 . 6 Leg 15 | 2 3 . 4 6 Wheel . | . . . . . Hover 1 | . . . . 1 Flight . | . . . . . Utility 33 | 1 4 5 10 13 Device 7 | . 3 . 1 3 Storage 6 | 1 1 1 3 . Processor 1 | . . . 1 . Hackware . | . . . . . Protection 19 | . . 4 5 10 Artifact . | . . . . . Weapon 27 | 2 3 5 7 10 Energy Gun . | . . . . . Energy Cannon 5 | . 1 4 . . Ballistic Gun 4 | 2 1 1 . . Ballistic Cannon 11 | . . . 5 6 Launcher . | . . . . . Special Weapon . | . . . . . Impact Weapon 2 | . . . . 2 Slashing Weapon 5 | . 1 . 2 2 Piercing Weapon . | . . . . . Special Melee Weapon . | . . . . . Unidentified Prototypes . | . . . . . Parts Lost 24 | . 3 2 4 15 Power 4 | . 1 1 . 2 Propulsion 6 | . 1 . . 5 Utility 12 | . 1 1 4 6 Weapon 2 | . . . . 2 Highest Loss Streak 5 | . 2 2 2 5 To Critical Strikes . | . . . . . Average Slot Usage (%) 93 | . 98 93 86 96 Engine 8 | . 13 11 2 6 Core 1 | . . . 6 . Treads 12 | . . 28 3 11 Leg 17 | . 28 . 28 23 Device 5 | . 12 2 6 3 Storage 10 | . 14 11 9 9 Processor 2 | . . . . 9 Protection 9 | . . 10 11 14 Energy Cannon 7 | . 7 17 . . Ballistic Gun 7 | . 20 10 . . Ballistic Cannon 6 | . . . 15 9 Slashing Weapon 1 | . . . 1 5 Naked Turns . | . . . . . Heaviest Build 118 | 10 49 64 118 55 Greatest Support 87 | 20 20 40 57 87 Greatest Overweight (x) 4 | 2 2 1 4 3 Average Overweight (x) . | . 1 . . . Largest Inventory Capacity 25 | 8 20 20 25 15 Average Capacity 17 | 7 19 17 19 15 Most Carried 19 | 4 9 13 19 15 Average Carried 10 | 2 6 8 14 13 Final Capacity 20 | 8 20 20 15 15 Final Carried 15 | 4 7 13 15 15 Class Distribution -------------------- 80% | Mutant 15% | Scavenger-Mutant 4% | Subdweller-Mutant Dominant Class ---------------- Mutant | -10/Materials Mutant | -10/Subcaves Mutant | -8/Materials Scavenger-Mutant | -8/Garrison Resources | -11 -10 -10 -8 -8 ----------- Run | Yrd Mat Sub Mat Gar Matter Collected 2610 | 239 236 356 822 957 Remotely 62 | . . . . 62 Salvage Created 2566 | . 254 491 871 950 Parts 172 | . 17 29 61 65 Haulers Intercepted 2 | . . . 2 . Recyclers Shooed 1 | . . . 1 . Parts Field Recycled . | . . . . . Retrieved Matter . | . . . . . Parts Self-Destructed 11 | . . 11 . . Prevented . | . . . . . Kills | -11 -10 -10 -8 -8 ------- Run | Yrd Mat Sub Mat Gar Combat Hostiles Destroyed 76 | . 10 11 29 26 Melee 16 | . . . 4 12 Guns 6 | . 5 1 . . Cannons 49 | . 5 9 21 14 AOE 4 | . . . 4 . Classes Destroyed 12 | . 2 2 6 2 Worker 2 | . . . 2 . Builder 2 | . . . 2 . Hauler 2 | . . . 2 . Recycler 3 | . . . 3 . Mechanic 1 | . . . 1 . Watcher 2 | . . . 1 1 Swarmer 28 | . 6 . 13 9 Grunt 16 | . 4 . 7 5 Sentry 20 | . . 1 9 10 Programmer 1 | . . . . 1 Behemoth 1 | . . . . 1 Subdweller 10 | . . 10 . . Best Kill Streak 6 | . 3 2 6 5 Combat Bots Only 5 | . 3 2 5 5 Max Kills in Single Turn 5 | . 2 1 5 1 Gunslinging . | . . . . . Exploded 4 | . . . 4 . Melee 1 | . . . 1 1 Uniques/NPCs Destroyed . | . . . . . Combat | -11 -10 -10 -8 -8 -------- Run | Yrd Mat Sub Mat Gar Hostile Shots Fired 531 | . 55 41 125 310 Missed 136 | . 8 10 40 78 Damage Taken 5325 | . 477 734 1228 2886 Core 788 | . 50 186 75 477 Absorbed by Shields . | . . . . . Ignored by Resistances 45 | . . . . 45 Core Remaining (%) 52 | 100 . 5 . . Volleys Fired 225 | . 34 40 77 74 Largest 2 | . 2 2 2 2 Hottest 160 | . 80 160 96 96 Shots Fired 385 | . 69 70 141 105 Gun 77 | . 49 28 . . Cannon 308 | . 20 42 141 105 Launcher . | . . . . . Special . | . . . . . Kinetic 323 | . 49 28 141 105 Thermal 62 | . 20 42 . . Explosive . | . . . . . Electromagnetic . | . . . . . Robot Hit Streak 24 | . 9 21 24 11 Robot Miss Streak 15 | . 5 1 15 3 Penetration Max 1 | . . . 1 1 Secondary Targets . | . . . . . Shots Hit Robots 283 | . 40 47 98 98 Core Hits 146 | . 18 14 75 39 Critical Kills 10 | . . 2 . 8 Critical Parts Destroyed 9 | . . . . 9 Critical Strikes 36 | . . 2 5 29 Meltdown 1 | . . 1 . . Destroy 22 | . . 1 . 21 Blast 9 | . . . 5 4 Sever 4 | . . . . 4 Melee Attacks 71 | . 1 . 4 66 Impact 13 | . . . . 13 Slashing 58 | . 1 . 4 53 Piercing . | . . . . . Sneak Attacks 2 | . . . . 2 Combat Hostiles 1 | . . . . 1 Follow-up Attacks 3 | . . . . 3 Damage Inflicted 7701 | . 451 1003 3205 3042 Guns 464 | . 223 241 . . Cannons 4909 | . 228 762 2456 1463 Explosions 600 | . . . 600 . Melee 1608 | . . . 149 1459 Ramming 120 | . . . . 120 Kinetic 4383 | . 223 241 2456 1463 Thermal 1590 | . 228 762 600 . Explosive . | . . . . . Electromagnetic . | . . . . . Impact 115 | . . . . 115 Slashing 1493 | . . . 149 1344 Piercing . | . . . . . Highest Corruption 3 | . 2 2 . 3 Average Corruption 2 | . 2 2 . 2 Corruption Purged . | . . . . . Corruption Blocked . | . . . . . Effects 63 | . 13 31 . 19 Message Errors 17 | . 3 10 . 4 Matter Fused 12 | . 3 6 . 3 Heat Flow Errors 5 | . 2 2 . 1 Energy Discharges 9 | . 2 4 . 3 Parts Fused 1 | . . 1 . . Data Loss (minor) 6 | . . 4 . 2 Data Loss (major) 3 | . 1 . . 2 Misfires 6 | . 1 1 . 4 Alerts 4 | . 1 3 . . Overload Shots . | . . . . . Overflow Damage 308 | . . . 181 127 Projectiles 90 | . . . 82 8 Explosions 90 | . . . 90 . Melee 128 | . . . 9 119 Knockbacks 33 | . . . 29 4 Impact 2 | . . . . 2 Kinetic 31 | . . . 29 2 Secondary . | . . . . . Self-Inflicted Damage 119 | . . . 119 . Shots 2 | . . . 2 . Rammed . | . . . . . Targets Rammed 24 | . . . . 24 Kicked 24 | . . . . 24 Crushed . | . . . . . Highest Temperature 553 | . 252 219 273 553 Average Temperature 111 | . 67 73 83 152 Received Heat Transfer 2091 | . 204 364 450 1073 Effects 9 | . . . 2 7 Shutdowns 1 | . . . . 1 Energy Bleed 3 | . . . 1 2 Interference 1 | . . . 1 . Damage (minor) 2 | . . . . 2 Damage (major) 1 | . . . . 1 Damage (core) 1 | . . . . 1 Siege Activations . | . . . . . Robots Corrupted . | . . . . . Combat Hostiles . | . . . . . Parts Fried . | . . . . . Impact Corruptions 3 | . . . . 3 Robots Melted 1 | . . 1 . . Combat Hostiles 1 | . . 1 . . Parts Melted 4 | . . 4 . . Heat Transferred 2028 | . 481 1147 400 . Parts Sabotaged . | . . . . . Parts Stolen . | . . . . . Parts Stripped . | . . . . . Power Chain Reactions . | . . . . . Alert | -11 -10 -10 -8 -8 ------- Run | Yrd Mat Sub Mat Gar Peak Influence 1301 | . 116 . 377 1301 Initial 226 | . . . . 226 Average 313 | . 53 . 148 723 Maximum Alert Level 4 | . . . 1 4 Low Security (%) 53 | 100 100 . 65 . Level 1 16 | . . . 34 8 Level 2 16 | . . . . 50 Level 3 9 | . . . . 29 Level 4 3 | . . . . 11 Level 5 . | . . . . . High Security . | . . . . . Max Security . | . . . . . Squads Dispatched 3 | . 2 . 1 . Investigation . | . . . . . Extermination . | . . . . . Reinforcement 3 | . 2 . 1 . Assault . | . . . . . Garrison . | . . . . . Intercept . | . . . . . Searches Triggered . | . . . . . Construction Impeded . | . . . . . Haulers Reinforced . | . . . . . Active Scanning Responses . | . . . . . Cargo Convoy Interrupts . | . . . . . Stealth | -11 -10 -10 -8 -8 --------- Run | Yrd Mat Sub Mat Gar Distress Signals 4 | . 2 . 1 1 Communications Jammed . | . . . . . Distress Signals . | . . . . . Times Spotted 115 | . 22 12 44 37 Peak Tracking Total 5 | . 5 2 5 5 Tactical Retreats 17 | . 3 . 6 8 Traps | -11 -10 -10 -8 -8 ------- Run | Yrd Mat Sub Mat Gar Traps Triggered 7 | . 1 . . 6 Indirectly . | . . . . . Trap Hack Attempts . | . . . . . Triggered . | . . . . . Disarmed . | . . . . . Reprogrammed . | . . . . . Reused . | . . . . . Traps Extracted . | . . . . . Installed . | . . . . . Triggered . | . . . . . Most Traps Carried 2 | . . 2 2 . Machines | -11 -10 -10 -8 -8 ---------- Run | Yrd Mat Sub Mat Gar Machines Disabled 6 | . . . 2 4 Max in Single Turn 2 | . . . 2 1 Garrison Relay 3 | . . . . 3 Machines Repaired . | . . . . . Machines Dismantled . | . . . . . Machines Sabotaged . | . . . . . Overloaded Fab Kills . | . . . . . Hacking | -11 -10 -10 -8 -8 --------- Run | Yrd Mat Sub Mat Gar Machines Accessed 18 | . 4 . 12 2 Terminals 16 | . 4 . 10 2 Fabricators . | . . . . . Repair Stations . | . . . . . Recycling Units . | . . . . . Scanalyzers 1 | . . . 1 . Garrison Access 1 | . . . 1 . Total Hacks 42 | . 8 . 30 4 Successful 20 | . 5 . 14 1 Failed 22 | . 3 . 16 3 Catastrophic 6 | . 1 . 4 1 Database Lockouts . | . . . . . Manual 13 | . 4 . 9 . Terminals 36 | . 8 . 24 4 Fabricators . | . . . . . Repair Stations . | . . . . . Recycling Units . | . . . . . Scanalyzers 5 | . . . 5 . Garrison Access 1 | . . . 1 . Terminal Hacks 12 | . 4 . 7 1 Branch Access Points 1 | . 1 . . . Emergency Access Points 2 | . 1 . . 1 Terminal Index 1 | . . . 1 . Unreport Threat 2 | . . . 2 . Locate Traps 1 | . . . 1 . Hauler Manifests 1 | . 1 . . . Registered Components 2 | . 1 . 1 . Zone Layout 2 | . . . 2 . Fabricator Hacks . | . . . . . Repair Station Hacks . | . . . . . Recycling Unit Hacks . | . . . . . Scanalyzer 4 | . . . 4 . Insert Component 1 | . . . 1 . Analyze 3 | . . . 3 . Garrison Access Hacks 1 | . . . 1 . Unlock Access 1 | . . . 1 . Unauthorized Hacks 3 | . 1 . 2 . Terminals 3 | . 1 . 2 . Botnet 3 | . 1 . 2 . Fabricators . | . . . . . Repair Stations . | . . . . . Recycling Units . | . . . . . Scanalyzers . | . . . . . Garrison Access . | . . . . . Data Cores Recovered . | . . . . . Used . | . . . . . Hacking Detections 15 | . 3 . 10 2 Full Trace Events . | . . . . . Feedback Events . | . . . . . Feedback Blocked . | . . . . . Robot Schematics Acquired . | . . . . . Robots Built . | . . . . . Authchips . | . . . . . Time . | . . . . . Total Robot Build Rating . | . . . . . Part Schematics Acquired 1 | . . . 1 . Parts Built . | . . . . . Authchips . | . . . . . Time . | . . . . . Total Part Build Rating . | . . . . . Parts Repaired . | . . . . . Time . | . . . . . Parts Recycled . | . . . . . Recycled Matter . | . . . . . Retrieved Matter . | . . . . . Retrieved Components . | . . . . . Parts Scanalyzed 1 | . . . 1 . Part Schematics Acquired 1 | . . . 1 . Parts Damaged . | . . . . . Bothacking | -11 -10 -10 -8 -8 ------------ Run | Yrd Mat Sub Mat Gar Used RIF Installer 1 | . . . . 1 Robots Hacked . | . . . . . Non-combat . | . . . . . Combat . | . . . . . Robot Hacks Applied . | . . . . . Relay Couplers Released 16 | . . . . 16 Machine Destruction 12 | . . . . 12 Programmers 4 | . . . . 4 Fabnet Peak Effective % . | . . . . . Robots Rewired . | . . . . . Allies Hacked . | . . . . . Hacks Repelled . | . . . . . Allies | -11 -10 -10 -8 -8 -------- Run | Yrd Mat Sub Mat Gar Total Allies . | . . . . . Largest Group . | . . . . . Highest-Rated Group . | . . . . . Highest-Rated Ally . | . . . . . Total Orders . | . . . . . Ally Attacks . | . . . . . Total Damage . | . . . . . Kills . | . . . . . Allies Corrupted . | . . . . . Allies Melted . | . . . . . Intel | -11 -10 -10 -8 -8 ------- Run | Yrd Mat Sub Mat Gar Robot Analysis Total . | . . . . . Derelict Logs Recovered 1 | . . 1 . . Drone Launches . | . . . . . Drone Recoveries . | . . . . . Exploration | -11 -10 -10 -8 -8 ------------- Run | Yrd Mat Sub Mat Gar Turns Passed 9030 | 64 1628 2963 2352 2023 Spaces Moved 3723 | 45 563 1238 961 916 Core 5 | 5 . . . . Treads 1711 | . . 1238 128 345 Legs 2007 | 40 563 . 833 571 Wheels . | . . . . . Hover . | . . . . . Flight . | . . . . . Fastest Speed 50 | 50 120 160 112 110 Average Speed 200 | 114 255 220 188 157 Slowest Speed 400 | 150 260 240 400 330 Overloaded Moves . | . . . . . Propulsion Burnouts . | . . . . . Robots Hopped . | . . . . . Cave-ins Triggered . | . . . . . Exploration Rate (%) 57 | 3 79 50 78 75 Regions Visited 4 Branch Regions 1 Pre-discovered Areas . | . . . . . Known Exits Taken 1 | . . . 1 . Unknown Exits Taken 3 | 1 1 1 . . Scrap Searched 5 | . . 5 . . Spaces Dug 4 | . 1 3 . . Terrain Destroyed 84 | . 1 6 77 . Melee 1 | . 1 . . . Projectile 53 | . . 6 47 . AOE 30 | . . . 30 . Terrain Rammed . | . . . . . Walls Destroyed . | . . . . . Machines Disabled . | . . . . . Actions | -11 -10 -10 -8 -8 --------- Run | Yrd Mat Sub Mat Gar Total 4803 | 55 692 1408 1361 1287 Wait 507 | . 73 84 232 118 Move 3720 | 44 562 1237 961 916 Hop . | . . . . . Pick Up 78 | 5 6 14 33 20 Fast Attach 37 | 5 3 7 9 13 Attach 25 | 1 3 3 5 13 Detach 5 | . . . . 5 Swap 33 | . 6 3 9 15 Drop 76 | . 4 17 31 24 Fire 225 | . 34 40 77 74 Melee 65 | . 1 . 4 60 Ram . | . . . . . Kick 24 | . . . . 24 Crush . | . . . . . Escape Stasis 5 | . . . . 5 Rewire . | . . . . . Trap . | . . . . . Miscellaneous 3 | . . 3 . . Route ------- -11/Scrapyard -10/Materials (discovered 4 exits: [*Mat x2] / *Min / [*Sub]) -10/Subcaves -8/Materials (discovered 3 exits: *Fac x2 / Gar) -8/Garrison (discovered 2 exits: [*Mat x2]) History --------- Turn | Location | Event 17 | -11/Scrapyard | Discovered new exit (range 14) 65 | -11/Scrapyard | Entered Materials 307 | -10/Materials | Build established: Mutant 416 | -10/Materials | Discovered new exit (range 15) 705 | -10/Materials | Identified exit to Mines 1102 | -10/Materials | Discovered new exit (range 10) 1683 | -10/Materials | Discovered new exit (range 5) 1693 | -10/Materials | Entered Subcaves 2668 | -10/Subcaves | Shifting Twisted Machinery released Sub. Beam Cannon 2785 | -10/Subcaves | Shifting Twisted Machinery released Sub. Power Source 2835 | -10/Subcaves | Core integrity fell below 50% 3876 | -10/Subcaves | Core integrity fell below 20% 4196 | -10/Subcaves | Learned 4 Materials zone layouts 4345 | -10/Subcaves | Build established: Subdweller-Mutant 4357 | -10/Subcaves | Discovered new exit (range 10) 4656 | -10/Subcaves | Entered Materials 4656 | -8/Materials | Evolved 4 slots: Propulsion x2, Utility x2 4657 | -8/Materials | Identified exit to Factory 5027 | -8/Materials | Build established: Mutant 6753 | -8/Materials | Discovered exit to Factory (range 14) 7008 | -8/Materials | Identified exit to Garrison 7008 | -8/Materials | Entered Garrison 7092 | -8/Garrison | Triggered checkpoint 7132 | -8/Garrison | Garrison Relay disabled 7364 | -8/Garrison | Triggered checkpoint 7512 | -8/Garrison | Build established: Scavenger-Mutant 7538 | -8/Garrison | Garrison Relay disabled 7571 | -8/Garrison | Discovered new exit (range 10) 7581 | -8/Garrison | Installed Relay Interface Framework 7589 | -8/Garrison | Spotted B-75 Beast 7617 | -8/Garrison | Core integrity fell below 50% 7642 | -8/Garrison | Lost 5 parts (1p2n2u) 7731 | -8/Garrison | Lost 3 parts (1p1n1u) 7742 | -8/Garrison | Destroyed B-75 Beast 7981 | -8/Garrison | Build established: Mutant 8455 | -8/Garrison | Triggered checkpoint 8556 | -8/Garrison | Spotted B-75 Beast 8569 | -8/Garrison | Discovered new exit (range 12) 8627 | -8/Garrison | Core integrity fell below 20% 8691 | -8/Garrison | Build established: Scavenger-Mutant 8697 | -8/Garrison | Garrison Relay disabled 9031 | -8/Garrison | Destroyed by B-75 Beast with Heavy Plasma Cannon Last Messages --------------- 09003_ B-75 Beast suffers critical hit (Destroy). 09012_ Destroyed Magnetic Acceleration Cannon. 09014_ XUNDR3YL2FD LDF6MTXEEWBJ,BPWF|